[Event "GrandPrix_30.05"]
[Site "Chess.com"]
[Date "2020.05.30"]
[Round "2"]
[White "Petriashvili02"]
[Black "Murad_Ibrahimli"]
[Result "1-0"]
[WhiteElo "2313"]
[BlackElo "2569"]
[TimeControl "600+2"]
[EndTime "8:53:59 PDT"]
[Termination "Petriashvili02 won by resignation"]

1. d4 {[%clk 0:10:01.9]} 1... Nf6 {[%clk 0:09:59.4]} 2. c4 {[%clk 0:10:01.8]}
2... e6 {[%clk 0:09:56.4]} 3. Nf3 {[%clk 0:10:02.6]} 3... d5 {[%clk 0:09:54.8]}
4. g3 {[%clk 0:10:03.7]} 4... Bb4+ {[%clk 0:09:52.1]} 5. Bd2 {[%clk 0:10:04.5]}
5... Be7 {[%clk 0:09:52.7]} 6. Bg2 {[%clk 0:10:04.7]} 6... O-O {[%clk
0:09:53.9]} 7. Qc2 {[%clk 0:10:04.6]} 7... c6 {[%clk 0:09:53.7]} 8. O-O {[%clk
0:10:05.7]} 8... b6 {[%clk 0:09:54.3]} 9. b3 {[%clk 0:09:14.6]} 9... Bb7 {[%clk
0:09:50.9]} 10. Bc3 {[%clk 0:09:05.1]} 10... c5 {[%clk 0:09:48.5]} 11. Nbd2
{[%clk 0:09:00.2]} 11... Nc6 {[%clk 0:09:36.8]} 12. Rad1 {[%clk 0:08:57.1]}
12... Rc8 {[%clk 0:07:55.1]} 13. Qb2 {[%clk 0:08:43.7]} 13... Qc7 {[%clk
0:07:21.6]} 14. dxc5 {[%clk 0:07:06.6]} 14... bxc5 {[%clk 0:07:15]} 15. e3
{[%clk 0:07:05.8]} 15... Rfd8 {[%clk 0:06:07.3]} 16. h4 {[%clk 0:06:53.8]} 16...
Qb6 {[%clk 0:05:46.7]} 17. cxd5 {[%clk 0:06:27.9]} 17... exd5 {[%clk 0:05:44.7]}
18. Qa1 {[%clk 0:06:17]} 18... a5 {[%clk 0:05:16.6]} 19. Rfe1 {[%clk 0:06:15.2]}
19... Ba6 {[%clk 0:04:22]} 20. Ne5 {[%clk 0:06:00.3]} 20... Nxe5 {[%clk
0:03:05.5]} 21. Bxe5 {[%clk 0:06:00.3]} 21... a4 {[%clk 0:01:57.1]} 22. bxa4
{[%clk 0:04:38.1]} 22... Qa5 {[%clk 0:01:56.1]} 23. Nb1 {[%clk 0:04:31.4]} 23...
Bc4 {[%clk 0:00:22.1]} 24. Nc3 {[%clk 0:04:04]} 24... Qa8 {[%clk 0:00:15]} 25.
Rd2 {[%clk 0:03:22]} 25... Qa6 {[%clk 0:00:15.1]} 26. Qd1 {[%clk 0:02:52.4]}
26... Qe6 {[%clk 0:00:15.7]} 27. Bxf6 {[%clk 0:02:51.6]} 27... Bxf6 {[%clk
0:00:16.3]} 28. Nxd5 {[%clk 0:02:52.9]} 28... Bxd5 {[%clk 0:00:14.4]} 29. Bxd5
{[%clk 0:02:53.9]} 29... Qe7 {[%clk 0:00:15.5]} 30. Qc2 {[%clk 0:02:43.6]} 30...
c4 {[%clk 0:00:15]} 31. Red1 {[%clk 0:02:38.7]} 31... c3 {[%clk 0:00:16.3]} 32.
Rd3 {[%clk 0:02:40.2]} 32... g6 {[%clk 0:00:16.5]} 33. a5 {[%clk 0:02:25]} 33...
Qa7 {[%clk 0:00:15.7]} 34. Qb3 {[%clk 0:02:15.7]} 34... Kg7 {[%clk 0:00:15.4]}
35. a6 {[%clk 0:01:16]} 35... c2 {[%clk 0:00:09.6]} 36. Rc1 {[%clk 0:01:16.7]}
36... Qc5 {[%clk 0:00:04.9]} 37. Bb7 {[%clk 0:00:46.4]} 37... Rxd3 {[%clk
0:00:04.3]} 38. Qxd3 {[%clk 0:00:48.3]} 38... Rc7 {[%clk 0:00:03.3]} 39. a4
{[%clk 0:00:37]} 39... Bb2 {[%clk 0:00:02.1]} 40. Rxc2 {[%clk 0:00:34.7]} 40...
Qxc2 {[%clk 0:00:03.5]} 41. Qxc2 {[%clk 0:00:36.2]} 41... Rxc2 {[%clk
0:00:04.5]} 42. a7 {[%clk 0:00:37.9]} 1-0

[Event "GrandPrix_30.05"]
[Site "Chess.com"]
[Date "2020.05.30"]
[Round "2"]
[White "Sam_ChessMood"]
[Black "WhiteCapital80"]
[Result "1/2-1/2"]
[WhiteElo "2555"]
[BlackElo "2300"]
[TimeControl "600+2"]
[EndTime "8:54:06 PDT"]
[Termination "Game drawn by repetition"]

1. e4 {[%clk 0:09:52.2]} 1... e6 {[%clk 0:09:27.9]} 2. d4 {[%clk 0:09:51.9]}
2... d5 {[%clk 0:09:28.4]} 3. Nc3 {[%clk 0:09:52.8]} 3... Nf6 {[%clk 0:09:24.8]}
4. e5 {[%clk 0:09:53.7]} 4... Ne4 {[%clk 0:09:25.5]} 5. Nxe4 {[%clk 0:08:36.4]}
5... dxe4 {[%clk 0:09:25.2]} 6. Be3 {[%clk 0:08:30.6]} 6... c5 {[%clk
0:09:24.5]} 7. dxc5 {[%clk 0:08:11.9]} 7... Nd7 {[%clk 0:09:24.2]} 8. b4 {[%clk
0:06:05.4]} 8... b6 {[%clk 0:08:49.9]} 9. Ne2 {[%clk 0:04:18.9]} 9... bxc5
{[%clk 0:08:35.7]} 10. Nc3 {[%clk 0:03:59.5]} 10... Qc7 {[%clk 0:07:03.4]} 11.
Qd2 {[%clk 0:02:32]} 11... a6 {[%clk 0:06:11.7]} 12. b5 {[%clk 0:02:28.1]} 12...
Qxe5 {[%clk 0:05:56.3]} 13. Rd1 {[%clk 0:02:01]} 13... Be7 {[%clk 0:05:53.9]}
14. Bf4 {[%clk 0:01:49.8]} 14... Qd4 {[%clk 0:05:32.8]} 15. a4 {[%clk
0:00:51.3]} 15... f5 {[%clk 0:04:54.2]} 16. Be3 {[%clk 0:00:34.8]} 16... Qxd2+
{[%clk 0:04:35.5]} 17. Bxd2 {[%clk 0:00:35.4]} 17... axb5 {[%clk 0:04:22.1]} 18.
Bxb5 {[%clk 0:00:34.8]} 18... Kf7 {[%clk 0:04:13.4]} 19. O-O {[%clk 0:00:34.5]}
19... Ne5 {[%clk 0:03:40.1]} 20. Rfe1 {[%clk 0:00:35.6]} 20... Bf6 {[%clk
0:03:31.7]} 21. Bf4 {[%clk 0:00:26.4]} 21... Ng6 {[%clk 0:03:20.1]} 22. Ne2
{[%clk 0:00:23.6]} 22... Nxf4 {[%clk 0:03:17.5]} 23. Nxf4 {[%clk 0:00:25.4]}
23... Bd4 {[%clk 0:02:19.5]} 24. Ne2 {[%clk 0:00:24.8]} 24... Rd8 {[%clk
0:02:19.3]} 25. c3 {[%clk 0:00:21.5]} 25... Bf6 {[%clk 0:02:19.1]} 26. Rxd8
{[%clk 0:00:22.6]} 26... Bxd8 {[%clk 0:02:17.8]} 27. Rd1 {[%clk 0:00:24]} 27...
Bf6 {[%clk 0:02:11.2]} 28. c4 {[%clk 0:00:24.5]} 28... Ke7 {[%clk 0:01:55.4]}
29. g3 {[%clk 0:00:24.5]} 29... g5 {[%clk 0:01:54.2]} 30. Kg2 {[%clk 0:00:24.1]}
30... Ra7 {[%clk 0:01:05.3]} 31. Kf1 {[%clk 0:00:23.2]} 31... h6 {[%clk
0:00:51.7]} 32. h3 {[%clk 0:00:23.8]} 32... Ba6 {[%clk 0:00:42.1]} 33. Rb1
{[%clk 0:00:24.8]} 33... Bxb5 {[%clk 0:00:37.6]} 34. axb5 {[%clk 0:00:26.7]}
34... Ra1 {[%clk 0:00:24.6]} 35. Rxa1 {[%clk 0:00:26.6]} 35... Bxa1 {[%clk
0:00:25.7]} 36. Nc1 {[%clk 0:00:27.3]} 36... Kd6 {[%clk 0:00:24.2]} 37. Nb3
{[%clk 0:00:27.3]} 37... Bd4 {[%clk 0:00:24.2]} 38. Ke2 {[%clk 0:00:21.7]} 38...
e5 {[%clk 0:00:24.4]} 39. g4 {[%clk 0:00:21.3]} 39... f4 {[%clk 0:00:24.2]} 40.
f3 {[%clk 0:00:22.8]} 40... e3 {[%clk 0:00:21.9]} 41. Na5 {[%clk 0:00:22]} 41...
Kc7 {[%clk 0:00:21.2]} 42. Nc6 {[%clk 0:00:18.2]} 42... Kd6 {[%clk 0:00:20.3]}
43. Na5 {[%clk 0:00:18.9]} 43... Kc7 {[%clk 0:00:21]} 44. Nc6 {[%clk 0:00:20.2]}
44... Kd6 {[%clk 0:00:22.2]} 45. Na5 {[%clk 0:00:21.4]} 1/2-1/2

[Event "GrandPrix_30.05"]
[Site "Chess.com"]
[Date "2020.05.30"]
[Round "2"]
[White "Zubrrr"]
[Black "DrVelja"]
[Result "1-0"]
[WhiteElo "2579"]
[BlackElo "2247"]
[TimeControl "600+2"]
[EndTime "8:54:07 PDT"]
[Termination "Zubrrr won by resignation"]

1. c4 {[%clk 0:10:01.9]} 1... e5 {[%clk 0:09:58.1]} 2. g3 {[%clk 0:10:02.8]}
2... Nc6 {[%clk 0:09:58.9]} 3. Nc3 {[%clk 0:10:03.7]} 3... g6 {[%clk 0:10:00.3]}
4. Bg2 {[%clk 0:10:04.5]} 4... Bg7 {[%clk 0:10:01.6]} 5. e4 {[%clk 0:09:54.6]}
5... d6 {[%clk 0:09:58.5]} 6. Nge2 {[%clk 0:09:55.5]} 6... Nge7 {[%clk
0:09:35.5]} 7. O-O {[%clk 0:09:55.9]} 7... O-O {[%clk 0:09:36.5]} 8. d3 {[%clk
0:09:55.7]} 8... Be6 {[%clk 0:09:19.7]} 9. f4 {[%clk 0:09:46.6]} 9... Qd7 {[%clk
0:09:20.5]} 10. Nd5 {[%clk 0:09:41.3]} 10... f5 {[%clk 0:09:15.8]} 11. Be3
{[%clk 0:09:23.4]} 11... Rf7 {[%clk 0:08:55.5]} 12. Qd2 {[%clk 0:09:03.1]} 12...
Raf8 {[%clk 0:08:51.2]} 13. Rae1 {[%clk 0:08:01.5]} 13... Kh8 {[%clk 0:06:58.9]}
14. b3 {[%clk 0:07:06]} 14... Nd4 {[%clk 0:05:55.5]} 15. fxe5 {[%clk 0:04:58.6]}
15... Nxe2+ {[%clk 0:04:57]} 16. Qxe2 {[%clk 0:04:40.3]} 16... dxe5 {[%clk
0:04:34.9]} 17. Bc5 {[%clk 0:04:31.6]} 17... Bxd5 {[%clk 0:04:34.3]} 18. exd5
{[%clk 0:04:26.4]} 18... Re8 {[%clk 0:04:17.3]} 19. Ba3 {[%clk 0:03:52.9]} 19...
g5 {[%clk 0:03:13.6]} 20. Qh5 {[%clk 0:03:43.4]} 20... Ng6 {[%clk 0:02:45.9]}
21. Qxg5 {[%clk 0:03:44]} 21... Bf8 {[%clk 0:01:08.9]} 22. Bxf8 {[%clk
0:02:33.4]} 22... Rexf8 {[%clk 0:01:05]} 23. h4 {[%clk 0:01:16.3]} 23... Rg7
{[%clk 0:00:50.1]} 24. Qh5 {[%clk 0:01:02.1]} 24... Rf6 {[%clk 0:00:14.2]} 25.
Kh2 {[%clk 0:00:57.1]} 25... Qf7 {[%clk 0:00:09.3]} 26. Bf3 {[%clk 0:00:19.6]}
26... f4 {[%clk 0:00:09.3]} 27. g4 {[%clk 0:00:20.7]} 27... Qe7 {[%clk
0:00:05.1]} 28. g5 {[%clk 0:00:20.2]} 28... Rf5 {[%clk 0:00:05]} 29. Be4 {[%clk
0:00:19.8]} 29... Nxh4 {[%clk 0:00:04]} 30. Qxh4 {[%clk 0:00:17]} 30... Rfxg5
{[%clk 0:00:05]} 31. Qh3 {[%clk 0:00:15]} 31... Qe8 {[%clk 0:00:03.9]} 32. Bf3
{[%clk 0:00:13.8]} 32... Rg3 {[%clk 0:00:04.7]} 33. Qh4 {[%clk 0:00:14.7]} 33...
R7g6 {[%clk 0:00:02.6]} 34. Rg1 {[%clk 0:00:13]} 34... Qf8 {[%clk 0:00:03.5]}
35. Rxg3 {[%clk 0:00:12.8]} 35... Rxg3 {[%clk 0:00:03]} 36. Be4 {[%clk
0:00:09.5]} 36... Rg7 {[%clk 0:00:03.2]} 37. Rg1 {[%clk 0:00:10.4]} 37... f3
{[%clk 0:00:03.4]} 38. Rxg7 {[%clk 0:00:10.7]} 38... Kxg7 {[%clk 0:00:05]} 39.
Qxh7+ {[%clk 0:00:11.3]} 1-0

[Event "GrandPrix_30.05"]
[Site "Chess.com"]
[Date "2020.05.30"]
[Round "2"]
[White "Paulz64"]
[Black "SavelijTartakover"]
[Result "0-1"]
[WhiteElo "2155"]
[BlackElo "2501"]
[TimeControl "600+2"]
[EndTime "8:54:15 PDT"]
[Termination "SavelijTartakover won by resignation"]

1. d4 {[%clk 0:09:59.9]} 1... d5 {[%clk 0:10:00.1]} 2. c4 {[%clk 0:10:00.3]}
2... c6 {[%clk 0:10:00.9]} 3. Nf3 {[%clk 0:10:00.7]} 3... Nf6 {[%clk 0:10:01.1]}
4. Qc2 {[%clk 0:10:01.9]} 4... dxc4 {[%clk 0:10:00.4]} 5. Qxc4 {[%clk
0:10:02.3]} 5... Bg4 {[%clk 0:10:00.4]} 6. Nbd2 {[%clk 0:10:02]} 6... Nbd7
{[%clk 0:09:59.5]} 7. g3 {[%clk 0:10:02.6]} 7... e6 {[%clk 0:10:00.3]} 8. Bg2
{[%clk 0:10:03.4]} 8... Be7 {[%clk 0:10:01.6]} 9. O-O {[%clk 0:10:04.1]} 9... a5
{[%clk 0:10:02.4]} 10. b3 {[%clk 0:09:52.5]} 10... a4 {[%clk 0:09:57.4]} 11.
bxa4 {[%clk 0:09:33.4]} 11... Qa5 {[%clk 0:09:54.2]} 12. Rb1 {[%clk 0:09:08]}
12... Ra7 {[%clk 0:09:53.2]} 13. Qb3 {[%clk 0:08:37.4]} 13... O-O {[%clk
0:09:19.6]} 14. Ba3 {[%clk 0:07:47.6]} 14... Bxa3 {[%clk 0:09:09]} 15. Qxa3
{[%clk 0:07:46.7]} 15... Nb6 {[%clk 0:08:51.5]} 16. e3 {[%clk 0:05:54.7]} 16...
Qxa4 {[%clk 0:07:46.8]} 17. Qb3 {[%clk 0:04:58.3]} 17... Bxf3 {[%clk 0:06:24.3]}
18. Nxf3 {[%clk 0:04:38.1]} 18... Nfd7 {[%clk 0:06:21.2]} 19. Qxa4 {[%clk
0:03:50.3]} 19... Rxa4 {[%clk 0:03:59.8]} 20. Ne5 {[%clk 0:02:34.3]} 20... Ra7
{[%clk 0:03:28.4]} 21. Nxd7 {[%clk 0:02:27.2]} 21... Nxd7 {[%clk 0:03:28.2]} 22.
Rb2 {[%clk 0:02:28.2]} 22... Rc8 {[%clk 0:03:20.8]} 23. Rc1 {[%clk 0:02:07.9]}
23... Kf8 {[%clk 0:03:08.4]} 24. f4 {[%clk 0:01:45.3]} 24... f5 {[%clk
0:02:58.6]} 25. h3 {[%clk 0:01:36.8]} 25... Nf6 {[%clk 0:02:52]} 26. Kf2 {[%clk
0:01:28.3]} 26... Rc7 {[%clk 0:02:49.9]} 27. Rc5 {[%clk 0:01:20.9]} 27... Ke7
{[%clk 0:02:45.9]} 28. Bf3 {[%clk 0:01:21.5]} 28... Kd6 {[%clk 0:02:42.7]} 29.
g4 {[%clk 0:01:20.2]} 29... g6 {[%clk 0:02:43.6]} 30. g5 {[%clk 0:01:12.1]}
30... Nd5 {[%clk 0:02:41.5]} 31. h4 {[%clk 0:01:11.6]} 31... Ra3 {[%clk
0:02:31.1]} 32. Bxd5 {[%clk 0:00:56.9]} 32... exd5 {[%clk 0:02:28]} 33. Rcc2
{[%clk 0:00:54.5]} 33... Re7 {[%clk 0:02:16.6]} 34. Re2 {[%clk 0:00:54]} 34...
Rc3 {[%clk 0:02:02.9]} 35. Kf3 {[%clk 0:00:44.5]} 35... Rc1 {[%clk 0:01:55.5]}
36. Rec2 {[%clk 0:00:39.8]} 36... Ra1 {[%clk 0:01:45.4]} 37. Rc3 {[%clk
0:00:34.3]} 37... Rh1 {[%clk 0:01:36.5]} 38. Kg3 {[%clk 0:00:32.4]} 38... Rg1+
{[%clk 0:01:08.7]} 39. Kf3 {[%clk 0:00:29.8]} 39... Rg4 {[%clk 0:01:02.3]} 40.
Rh2 {[%clk 0:00:29.9]} 40... h5 {[%clk 0:00:57.7]} 41. Kf2 {[%clk 0:00:28.7]}
41... Re8 {[%clk 0:00:51.8]} 42. Rh1 {[%clk 0:00:17.3]} 42... Ra8 {[%clk
0:00:51.6]} 43. a3 {[%clk 0:00:18]} 43... Kc7 {[%clk 0:00:49.6]} 44. Kf3 {[%clk
0:00:14.6]} 44... Ra4 {[%clk 0:00:49.6]} 45. Rb3 {[%clk 0:00:14.6]} 45... b5
{[%clk 0:00:47.4]} 46. Rc3 {[%clk 0:00:13.7]} 46... Kb6 {[%clk 0:00:47.2]} 47.
Rb3 {[%clk 0:00:11.9]} 47... Rc4 {[%clk 0:00:47.4]} 48. Rb2 {[%clk 0:00:09]}
48... Ka5 {[%clk 0:00:47.6]} 0-1

[Event "GrandPrix_30.05"]
[Site "Chess.com"]
[Date "2020.05.30"]
[Round "2"]
[White "2346PL"]
[Black "RaphaeI"]
[Result "0-1"]
[WhiteElo "2070"]
[BlackElo "2270"]
[TimeControl "600+2"]
[EndTime "8:54:15 PDT"]
[Termination "RaphaeI won on time"]

1. d4 {[%clk 0:10:01.9]} 1... Nf6 {[%clk 0:10:00.3]} 2. Bg5 {[%clk 0:10:02.6]}
2... d5 {[%clk 0:09:59.2]} 3. e3 {[%clk 0:10:03.1]} 3... c5 {[%clk 0:09:59.3]}
4. c3 {[%clk 0:10:02.9]} 4... Nc6 {[%clk 0:10:00.3]} 5. Nf3 {[%clk 0:10:03.4]}
5... Ne4 {[%clk 0:09:59.8]} 6. Bf4 {[%clk 0:10:03.3]} 6... Qb6 {[%clk
0:09:20.6]} 7. Qb3 {[%clk 0:10:03.9]} 7... c4 {[%clk 0:09:07]} 8. Qxb6 {[%clk
0:10:01.4]} 8... axb6 {[%clk 0:09:07.3]} 9. Nbd2 {[%clk 0:09:52.7]} 9... Nxd2
{[%clk 0:08:58.2]} 10. Kxd2 {[%clk 0:09:30.3]} 10... b5 {[%clk 0:09:00.1]} 11.
Ne5 {[%clk 0:09:18.8]} 11... e6 {[%clk 0:08:50.2]} 12. Be2 {[%clk 0:08:56]}
12... b4 {[%clk 0:08:48.2]} 13. Nxc6 {[%clk 0:08:45]} 13... bxc6 {[%clk
0:08:48.6]} 14. a4 {[%clk 0:07:16.1]} 14... b3 {[%clk 0:07:54.6]} 15. a5 {[%clk
0:07:05.6]} 15... Kd7 {[%clk 0:07:42.5]} 16. e4 {[%clk 0:06:54.4]} 16... Be7
{[%clk 0:07:34.2]} 17. h4 {[%clk 0:06:04.8]} 17... Bd8 {[%clk 0:07:27.3]} 18. h5
{[%clk 0:06:02.5]} 18... h6 {[%clk 0:07:27.7]} 19. Rh3 {[%clk 0:05:41.4]} 19...
Rxa5 {[%clk 0:07:01.4]} 20. Rxa5 {[%clk 0:05:39.4]} 20... Bxa5 {[%clk
0:07:03.3]} 21. Rg3 {[%clk 0:05:40.1]} 21... Rh7 {[%clk 0:07:04.7]} 22. exd5
{[%clk 0:05:28.8]} 22... cxd5 {[%clk 0:07:03.6]} 23. Rh3 {[%clk 0:05:16.4]}
23... Bb7 {[%clk 0:06:52.7]} 24. g4 {[%clk 0:05:11.4]} 24... f6 {[%clk
0:06:46.9]} 25. Be3 {[%clk 0:04:42.8]} 25... Rh8 {[%clk 0:03:55.2]} 26. f4
{[%clk 0:04:40.7]} 26... Ra8 {[%clk 0:03:55.8]} 27. g5 {[%clk 0:03:21.5]} 27...
Bc7 {[%clk 0:02:50.2]} 28. gxh6 {[%clk 0:03:19.6]} 28... gxh6 {[%clk 0:02:50.6]}
29. f5 {[%clk 0:02:26.8]} 29... Ra2 {[%clk 0:02:33.3]} 30. Bxh6 {[%clk
0:02:19.9]} 30... Rxb2+ {[%clk 0:02:32.7]} 31. Ke1 {[%clk 0:01:24.6]} 31... Rb1+
{[%clk 0:02:22.5]} 32. Kd2 {[%clk 0:00:57.6]} 32... Rg1 {[%clk 0:00:51]} 33. Bd1
{[%clk 0:00:15.4]} 33... Rg2+ {[%clk 0:00:51.7]} 34. Kc1 {[%clk 0:00:16.2]}
34... Bd6 {[%clk 0:00:53.1]} 35. Be3 {[%clk 0:00:08.6]} 35... e5 {[%clk
0:00:07.2]} 36. h6 {[%clk 0:00:09.3]} 36... exd4 {[%clk 0:00:08.4]} 37. h7
{[%clk 0:00:07.1]} 37... Ba3+ {[%clk 0:00:05.1]} 38. Kb1 {[%clk 0:00:08.1]}
38... dxc3 {[%clk 0:00:05.1]} 0-1

[Event "GrandPrix_30.05"]
[Site "Chess.com"]
[Date "2020.05.30"]
[Round "2"]
[White "arminmusovic"]
[Black "Vesper2018"]
[Result "1-0"]
[WhiteElo "2253"]
[BlackElo "1936"]
[TimeControl "600+2"]
[EndTime "8:54:16 PDT"]
[Termination "arminmusovic won by checkmate"]

1. a3 {[%clk 0:10:01.9]} 1... Nf6 {[%clk 0:10:00.2]} 2. Nc3 {[%clk 0:10:02.3]}
2... g6 {[%clk 0:09:58.6]} 3. e4 {[%clk 0:10:03.5]} 3... d6 {[%clk 0:09:56.9]}
4. d4 {[%clk 0:10:04.7]} 4... Bg7 {[%clk 0:09:56.2]} 5. Bg5 {[%clk 0:10:06.3]}
5... O-O {[%clk 0:09:50.3]} 6. f4 {[%clk 0:10:07]} 6... c6 {[%clk 0:09:19.2]} 7.
e5 {[%clk 0:10:07.7]} 7... Nd5 {[%clk 0:09:06.6]} 8. Nxd5 {[%clk 0:10:03.4]}
8... cxd5 {[%clk 0:09:07.4]} 9. Nf3 {[%clk 0:10:02.7]} 9... Nc6 {[%clk
0:08:56.2]} 10. Be2 {[%clk 0:09:47.2]} 10... dxe5 {[%clk 0:08:49]} 11. fxe5
{[%clk 0:09:45.1]} 11... f6 {[%clk 0:08:38.6]} 12. exf6 {[%clk 0:09:43.8]} 12...
exf6 {[%clk 0:08:39.8]} 13. Bh4 {[%clk 0:09:32.3]} 13... Bf5 {[%clk 0:08:32.9]}
14. O-O {[%clk 0:09:16.3]} 14... Qd7 {[%clk 0:08:24.5]} 15. Bd3 {[%clk 0:09:06]}
15... Be4 {[%clk 0:08:10.2]} 16. c3 {[%clk 0:09:07.2]} 16... Rae8 {[%clk
0:08:03.3]} 17. Bb5 {[%clk 0:09:02.6]} 17... a6 {[%clk 0:07:39.5]} 18. Be2
{[%clk 0:08:41.8]} 18... h6 {[%clk 0:07:29.9]} 19. Nd2 {[%clk 0:08:18.1]} 19...
f5 {[%clk 0:07:10.7]} 20. Bf2 {[%clk 0:07:03.5]} 20... g5 {[%clk 0:06:59.9]} 21.
Bh5 {[%clk 0:06:57.4]} 21... Re7 {[%clk 0:06:55]} 22. Nxe4 {[%clk 0:06:42.5]}
22... dxe4 {[%clk 0:05:55.8]} 23. d5 {[%clk 0:06:44.4]} 23... Ne5 {[%clk
0:05:38.8]} 24. Bc5 {[%clk 0:06:31.3]} 24... Nd3 {[%clk 0:05:13.3]} 25. Bxe7
{[%clk 0:05:58.7]} 25... Qxe7 {[%clk 0:05:14.3]} 26. Qb3 {[%clk 0:05:45.7]}
26... Kh7 {[%clk 0:04:56]} 27. Rad1 {[%clk 0:05:23.4]} 27... g4 {[%clk
0:04:41.6]} 28. d6 {[%clk 0:04:34.8]} 28... Qxd6 {[%clk 0:02:52.8]} 29. Qxb7
{[%clk 0:04:35.2]} 29... Qc5+ {[%clk 0:01:38.1]} 30. Kh1 {[%clk 0:04:33.2]}
30... Nf2+ {[%clk 0:01:37.8]} 31. Rxf2 {[%clk 0:04:34.5]} 31... Qxf2 {[%clk
0:01:39.1]} 32. Qxa6 {[%clk 0:03:59.3]} 32... e3 {[%clk 0:01:29.5]} 33. Rf1
{[%clk 0:03:51.6]} 33... Qd2 {[%clk 0:01:07.5]} 34. Qg6+ {[%clk 0:02:44.9]}
34... Kh8 {[%clk 0:01:07.6]} 35. Qe6 {[%clk 0:01:39.9]} 35... e2 {[%clk
0:01:03.3]} 36. Rg1 {[%clk 0:01:41.4]} 36... Rd8 {[%clk 0:00:20.6]} 37. Be8
{[%clk 0:01:00.3]} 37... f4 {[%clk 0:00:16.6]} 38. Bb5 {[%clk 0:00:53]} 38... f3
{[%clk 0:00:17.2]} 39. gxf3 {[%clk 0:00:54.5]} 39... gxf3 {[%clk 0:00:18.5]} 40.
Qf7 {[%clk 0:00:46.6]} 40... Qg5 {[%clk 0:00:04.3]} 41. Rxg5 {[%clk 0:00:30.4]}
41... Rd1+ {[%clk 0:00:05.2]} 42. Rg1 {[%clk 0:00:29.1]} 42... Rxg1+ {[%clk
0:00:06.2]} 43. Kxg1 {[%clk 0:00:30.6]} 43... e1=Q+ {[%clk 0:00:07.4]} 44. Bf1
{[%clk 0:00:32.3]} 44... Qe3+ {[%clk 0:00:06]} 45. Kh1 {[%clk 0:00:33.3]} 45...
Qf2 {[%clk 0:00:06.1]} 46. Qe8+ {[%clk 0:00:32.7]} 46... Kh7 {[%clk 0:00:06.5]}
47. Bd3# {[%clk 0:00:34.2]} 1-0

[Event "GrandPrix_30.05"]
[Site "Chess.com"]
[Date "2020.05.30"]
[Round "2"]
[White "wnstop"]
[Black "Yuri202062"]
[Result "1-0"]
[WhiteElo "2199"]
[BlackElo "1966"]
[TimeControl "600+2"]
[EndTime "8:54:18 PDT"]
[Termination "wnstop won on time"]

1. e4 {[%clk 0:10:01.9]} 1... c5 {[%clk 0:09:59.8]} 2. Nf3 {[%clk 0:09:58]} 2...
e6 {[%clk 0:09:59.6]} 3. d4 {[%clk 0:09:55.9]} 3... cxd4 {[%clk 0:10:00.7]} 4.
Nxd4 {[%clk 0:09:57.8]} 4... a6 {[%clk 0:10:01.6]} 5. c4 {[%clk 0:09:58.3]} 5...
Nf6 {[%clk 0:10:00.2]} 6. Nc3 {[%clk 0:09:58.2]} 6... d6 {[%clk 0:09:54.1]} 7.
Be2 {[%clk 0:09:47.6]} 7... Be7 {[%clk 0:09:50.6]} 8. O-O {[%clk 0:09:46.5]}
8... Qc7 {[%clk 0:09:50.6]} 9. Qd3 {[%clk 0:09:16.6]} 9... O-O {[%clk
0:09:48.3]} 10. b4 {[%clk 0:08:56.8]} 10... Nbd7 {[%clk 0:09:45.4]} 11. f4
{[%clk 0:08:54.6]} 11... b6 {[%clk 0:09:44]} 12. Bb2 {[%clk 0:08:55]} 12... Bb7
{[%clk 0:09:43.9]} 13. a3 {[%clk 0:08:42.7]} 13... Rac8 {[%clk 0:09:40.7]} 14.
Rac1 {[%clk 0:08:43.2]} 14... Rfe8 {[%clk 0:09:40.5]} 15. g4 {[%clk 0:08:39.2]}
15... Nf8 {[%clk 0:09:04.8]} 16. g5 {[%clk 0:08:37.8]} 16... N6d7 {[%clk
0:09:05.3]} 17. h4 {[%clk 0:08:26.2]} 17... Qd8 {[%clk 0:08:54.4]} 18. Nd5
{[%clk 0:05:32.3]} 18... exd5 {[%clk 0:07:54.3]} 19. cxd5 {[%clk 0:05:33]} 19...
Rxc1 {[%clk 0:07:38.8]} 20. Rxc1 {[%clk 0:05:28.6]} 20... Ng6 {[%clk 0:07:33.2]}
21. Qg3 {[%clk 0:04:55.9]} 21... Bf8 {[%clk 0:06:21.2]} 22. Bd3 {[%clk
0:04:34.1]} 22... Nde5 {[%clk 0:05:34.1]} 23. fxe5 {[%clk 0:04:06]} 23... Nxe5
{[%clk 0:05:32.7]} 24. Bf1 {[%clk 0:03:25.3]} 24... b5 {[%clk 0:05:03.3]} 25.
Nc6 {[%clk 0:02:29.5]} 25... Bxc6 {[%clk 0:03:59.8]} 26. dxc6 {[%clk 0:02:31.4]}
26... Qc7 {[%clk 0:04:01]} 27. Bxe5 {[%clk 0:01:57.5]} 27... Rxe5 {[%clk
0:03:15.8]} 28. Qg4 {[%clk 0:01:31.5]} 28... Re7 {[%clk 0:03:06.1]} 29. Bh3
{[%clk 0:00:31.4]} 29... g6 {[%clk 0:02:53.5]} 30. Kg2 {[%clk 0:00:26.4]} 30...
Bg7 {[%clk 0:02:29.4]} 31. Qc8+ {[%clk 0:00:24.8]} 31... Qxc8 {[%clk 0:02:24.1]}
32. Bxc8 {[%clk 0:00:26.7]} 32... Rc7 {[%clk 0:02:19.9]} 33. Bxa6 {[%clk
0:00:08.8]} 33... Bb2 {[%clk 0:02:20.6]} 34. Rc2 {[%clk 0:00:03.6]} 34... Bxa3
{[%clk 0:02:21.2]} 35. Bxb5 {[%clk 0:00:05.2]} 35... Bxb4 {[%clk 0:02:22]} 36.
Bc4 {[%clk 0:00:05.5]} 36... Be1 {[%clk 0:00:12.8]} 37. Kh3 {[%clk 0:00:05.3]}
37... Kf8 {[%clk 0:00:05.3]} 38. Bd5 {[%clk 0:00:06.4]} 38... Ke7 {[%clk
0:00:05.8]} 39. Kg4 {[%clk 0:00:05.9]} 1-0